Cogmind - Beta 14 @@@ ROGUE MODE // 2025.03.19 @ 15:41:58 Player: winnking222 Result: Destroyed by Y-45 Defender with Beam Rifle Performance ------------- Evolutions (2) 1000 Regions Visited (4) 800 Robots Destroyed (80) 400 Value Destroyed (2291) 2291 Prototype IDs (6) 120 Alien Tech Used (0) 0 Bonus (0) 0 TOTAL SCORE: 4611 Bonus ------- None Cogmind --------- Core Integrity 0/550 Matter 218/300 Energy 79/200 System Corruption 2% Temperature Hot (216) Movement Core (550) Ox10 Location -8/Storage Parts ------- > --- POWER (1) -------- Subdweller Power Source > --- PROPULSION (4) --- (None) > --- UTILITY (4) ------ Large Storage Unit Advanced Targeting Computer > --- WEAPON (2) ------- Heavy Particle Cannon > --- INVENTORY (15) --- Light Nuclear Core Aluminum Leg High-capacity Matter Pod (200) Propulsion Shielding Hacking Suite Improved Datajack Peak State ------------ > --- POWER ------------ Nuclear Core > --- PROPULSION ------- Light Treads Light Treads Light Treads Advanced Treads > --- UTILITY ---------- Large Storage Unit Advanced Targeting Computer Heavy Armor Plating > --- WEAPON ----------- Improved Medium Laser Heavy Particle Cannon > --- INVENTORY -------- Subdweller Power Source Subdweller Power Source Light Nuclear Core Aluminum Leg Subdweller Monowheel Improved Heat Sink High-capacity Matter Pod Propulsion Shielding Reactive Plating Reflective Plating Hacking Suite Particle Cannon Heavy Assault Rifle Gauss Rifle Improved Datajack [Rating: 28] Favorites ----------- Power Ion Engine Engine Ion Engine Power Core Nuclear Core Propulsion Light Treads Treads Light Treads Leg Aluminum Leg Wheel Subdweller Monowheel Utility Large Storage Unit Device Improved Heat Sink Storage Large Storage Unit Processor Improved Targeting Computer Protection Heavy Armor Plating Weapon Light Cannon Energy Gun Spread Laser Energy Cannon Heavy Particle Cannon Ballistic Gun Heavy Assault Rifle Ballistic Cannon Light Cannon Launcher EMP Blaster Build | -11 -10 -10 -8 -8 ------- Run | Yrd Mat Sub Mat Sto Slots Evolved 4 | . . . 4 . Power . | . . . . . Propulsion 2 | . . . 2 . Utility 2 | . . . 2 . Weapon . | . . . . . Parts Attached 69 | 6 18 8 24 13 Power 9 | 1 3 2 1 2 Engine 8 | 1 3 2 . 2 Core 1 | . . . 1 . Reactor . | . . . . . Propulsion 23 | 2 6 3 10 2 Treads 14 | 2 4 2 5 1 Leg 6 | . 2 . 4 . Wheel 3 | . . 1 1 1 Hover . | . . . . . Flight . | . . . . . Utility 15 | 1 4 . 6 4 Device 1 | . . . . 1 Storage 4 | 1 2 . 1 . Processor 4 | . 2 . 2 . Hackware . | . . . . . Protection 6 | . . . 3 3 Artifact . | . . . . . Weapon 22 | 2 5 3 7 5 Energy Gun 6 | . 2 . 3 1 Energy Cannon 3 | . . . 1 2 Ballistic Gun 8 | 2 . 3 1 2 Ballistic Cannon 4 | . 3 . 1 . Launcher 1 | . . . 1 . Special Weapon . | . . . . . Impact Weapon . | . . . . . Slashing Weapon . | . . . . . Piercing Weapon . | . . . . . Special Melee Weapon . | . . . . . Unidentified Prototypes . | . . . . . Parts Lost 37 | . 4 5 12 16 Power 5 | . 1 1 1 2 Propulsion 15 | . 2 2 5 6 Utility 5 | . . . 1 4 Weapon 12 | . 1 2 5 4 Highest Loss Streak 14 | . 4 2 8 14 To Critical Strikes . | . . . . . Average Slot Usage (%) 92 | . 98 95 81 86 Engine 9 | . 13 13 1 4 Core 2 | . . . 6 4 Treads 22 | . 26 22 13 29 Leg 3 | . . . 13 . Storage 12 | . 14 14 9 9 Processor 12 | . 13 14 8 9 Protection 3 | . . . 10 7 Energy Gun 7 | . 9 5 6 6 Energy Cannon 1 | . . . 4 7 Ballistic Gun 8 | . 1 22 2 4 Ballistic Cannon 6 | . 17 . 2 . Peak Build Rating 28 | 6 12 14 28 28 Average Rating 14 | 5 8 12 21 24 On Entrance 12 | . 6 12 14 28 Naked Turns . | . . . . . Heaviest Build 51 | 12 31 31 51 51 Greatest Support 82 | 40 40 40 82 82 Greatest Overweight (x) 9 | . 1 1 8 9 Average Overweight (x) . | . . . . . Largest Inventory Capacity 15 | 8 15 15 15 15 Average Capacity 14 | 7 13 15 15 15 Most Carried 15 | 5 15 15 15 15 Average Carried 13 | 2 12 14 13 12 Final Capacity 15 | 8 15 15 15 15 Final Carried 15 | 2 15 15 15 6 Class Distribution -------------------- 97% | Mutant Dominant Class ---------------- Mutant | -10/Materials Mutant | -10/Subcaves Mutant | -8/Materials Mutant | -8/Storage Resources | -11 -10 -10 -8 -8 ----------- Run | Yrd Mat Sub Mat Sto Matter Collected 1851 | 314 671 345 431 90 Remotely . | . . . . . Salvage Created 2721 | 74 605 283 1206 553 Parts 166 | 1 47 9 75 34 Haulers Intercepted 5 | . 2 . 3 . Recyclers Shooed 2 | . 2 . . . Parts Field Recycled . | . . . . . Retrieved Matter . | . . . . . Parts Self-Destructed 12 | . . 12 . . Prevented . | . . . . . Kills | -11 -10 -10 -8 -8 ------- Run | Yrd Mat Sub Mat Sto Combat Hostiles Destroyed 55 | . 15 9 18 13 Guns 25 | . 2 9 6 8 Cannons 29 | . 13 . 11 5 Classes Destroyed 14 | 1 6 2 5 . Builder 1 | . . . 1 . Tunneler 1 | . 1 . . . Hauler 5 | . 2 . 3 . Recycler 4 | 1 1 . 2 . Mechanic 1 | . . . 1 . Operator 4 | . 2 . 2 . Turret 2 | . . 2 . . Watcher 7 | . 3 . 3 1 Swarmer 15 | . 5 4 3 3 Grunt 26 | . 10 . 8 8 Brawler 1 | . . . 1 . Sentry 6 | . . . 4 2 Hunter 2 | . . . 2 . Subdweller 5 | . . 5 . . Best Kill Streak 9 | 1 5 5 7 9 Combat Bots Only 9 | . 3 3 3 9 Max Kills in Single Turn 2 | 1 1 1 2 2 Gunslinging 1 | . . . . 1 Exploded . | . . . . . Melee . | . . . . . Uniques/NPCs Destroyed . | . . . . . Combat | -11 -10 -10 -8 -8 -------- Run | Yrd Mat Sub Mat Sto Hostile Shots Fired 557 | . 103 120 151 183 Missed 145 | . 25 45 43 32 Damage Taken 5646 | . 868 1046 1555 2177 Core 791 | . 73 167 210 341 Absorbed by Shields . | . . . . . Redirected to Shielding 28 | . . . 28 . Ignored by Resistances 98 | . . . . 98 Core Remaining (%) 52 | 100 . 4 . . Volleys Fired 234 | 9 60 44 80 41 Largest 2 | 2 2 2 2 2 Hottest 131 | 40 130 130 131 131 Shots Fired 451 | 18 120 88 149 76 Gun 268 | 18 25 88 92 45 Cannon 181 | . 95 . 55 31 Launcher 2 | . . . 2 . Special . | . . . . . Kinetic 271 | 18 103 53 66 31 Thermal 178 | . 17 35 81 45 Explosive . | . . . . . Electromagnetic 2 | . . . 2 . Robot Hit Streak 36 | 4 11 36 10 23 Robot Miss Streak 6 | 2 4 6 6 3 Penetration Max 1 | . . . . 1 Secondary Targets 4 | . . 1 1 2 Max Gunslinging Chain 1 | . . 1 1 1 Shots Hit Robots 315 | 12 67 77 103 56 Core Hits 168 | 2 48 32 61 25 Critical Kills . | . . . . . Critical Parts Destroyed 1 | . . . . 1 Critical Strikes 13 | . 4 . 7 2 Burn 7 | . . . 6 1 Destroy 1 | . . . . 1 Blast 5 | . 4 . 1 . Melee Attacks . | . . . . . Impact . | . . . . . Slashing . | . . . . . Piercing . | . . . . . Sneak Attacks . | . . . . . Combat Hostiles . | . . . . . Follow-up Attacks . | . . . . . Damage Inflicted 5369 | 144 1182 867 2017 1159 Guns 3083 | 144 282 867 1134 656 Cannons 2218 | . 900 . 815 503 Explosions 61 | . . . 61 . Melee . | . . . . . Ramming 7 | . . . 7 . Kinetic 2952 | 144 954 599 734 521 Thermal 2349 | . 228 268 1215 638 Explosive . | . . . . . Electromagnetic 61 | . . . 61 . Impact . | . . . . . Slashing . | . . . . . Piercing . | . . . . . Highest Corruption 2 | . . . 2 2 Average Corruption 2 | . . . 2 2 Corruption Purged . | . . . . . Corruption Blocked . | . . . . . Effects 9 | . . . 7 2 Message Errors 3 | . . . 2 1 Matter Fused 1 | . . . 1 . Heat Flow Errors 1 | . . . 1 . Energy Discharges 1 | . . . 1 . Parts Fused 1 | . . . 1 . Data Loss (minor) 1 | . . . . 1 Misfires 1 | . . . 1 . Overload Shots . | . . . . . Overflow Damage 25 | . 22 . 3 . Projectiles 22 | . 22 . . . Explosions 3 | . . . 3 . Melee . | . . . . . Knockbacks 20 | . 13 . 7 . Impact 1 | . . . 1 . Kinetic 19 | . 13 . 6 . Secondary . | . . . . . Self-Inflicted Damage 41 | . . . 41 . Shots 1 | . . . 1 . Rammed . | . . . . . Targets Rammed 2 | . . . 2 . Kicked 2 | . . . 2 . Crushed . | . . . . . Highest Temperature 517 | . 188 90 277 517 Average Temperature 88 | . 58 40 91 143 Received Heat Transfer 2580 | . 348 387 558 1287 Effects 8 | . . . 4 4 Shutdowns 1 | . . . . 1 Interference 6 | . . . 4 2 Short Circuit 1 | . . . . 1 Siege Activations . | . . . . . Robots Corrupted . | . . . . . Combat Hostiles . | . . . . . Parts Fried 1 | . . . 1 . Impact Corruptions . | . . . . . Robots Melted 1 | . . . 1 . Combat Hostiles 1 | . . . 1 . Parts Melted 7 | . . . 7 . Heat Transferred 4453 | . 290 335 2644 1184 Parts Sabotaged . | . . . . . Parts Stolen . | . . . . . Parts Stripped . | . . . . . Power Chain Reactions . | . . . . . Alert | -11 -10 -10 -8 -8 ------- Run | Yrd Mat Sub Mat Sto Peak Influence 414 | 5 269 . 288 414 Initial 121 | . 3 . 10 121 Average 136 | 1 128 . 135 233 Maximum Alert Level 2 | . 1 . 1 2 Low Security (%) 76 | 100 73 . 83 53 Level 1 23 | . 26 . 16 44 Level 2 . | . . . . 2 Level 3 . | . . . . . Level 4 . | . . . . . Level 5 . | . . . . . High Security . | . . . . . Max Security . | . . . . . Squads Dispatched 9 | . 4 . 2 3 Investigation 2 | . 2 . . . Extermination . | . . . . . Reinforcement 5 | . 2 . 2 1 Assault . | . . . . . Garrison 2 | . . . . 2 Intercept . | . . . . . Searches Triggered . | . . . . . Construction Impeded . | . . . . . Haulers Reinforced . | . . . . . Active Scanning Responses . | . . . . . Cargo Convoy Interrupts . | . . . . . Stealth | -11 -10 -10 -8 -8 --------- Run | Yrd Mat Sub Mat Sto Distress Signals 8 | . 1 . 5 2 Communications Jammed . | . . . . . Distress Signals . | . . . . . Times Spotted 108 | . 27 21 40 20 Peak Tracking Total 9 | . 6 4 8 9 Tactical Retreats 10 | . 5 2 2 1 Traps | -11 -10 -10 -8 -8 ------- Run | Yrd Mat Sub Mat Sto Traps Triggered 3 | . 3 . . . Indirectly . | . . . . . Trap Hack Attempts . | . . . . . Triggered . | . . . . . Disarmed 6 | . . . . 6 Reprogrammed . | . . . . . Reused . | . . . . . Traps Extracted . | . . . . . Installed . | . . . . . Triggered . | . . . . . Machines | -11 -10 -10 -8 -8 ---------- Run | Yrd Mat Sub Mat Sto Machines Disabled 8 | . 1 1 4 2 Max in Single Turn 2 | . 1 1 2 1 Machines Repaired . | . . . . . Machines Dismantled . | . . . . . Machines Sabotaged . | . . . . . Overloaded Fab Kills . | . . . . . Hacking | -11 -10 -10 -8 -8 --------- Run | Yrd Mat Sub Mat Sto Machines Accessed 7 | . 3 . 3 1 Terminals 4 | . 1 . 2 1 Fabricators . | . . . . . Repair Stations 1 | . 1 . . . Recycling Units 2 | . 1 . 1 . Scanalyzers . | . . . . . Garrison Access . | . . . . . Total Hacks 18 | . 6 . 8 4 Successful 12 | . 4 . 4 4 Failed 6 | . 2 . 4 . Catastrophic . | . . . . . Database Lockouts . | . . . . . Manual 1 | . . . . 1 Terminals 8 | . 1 . 3 4 Fabricators . | . . . . . Repair Stations 3 | . 3 . . . Recycling Units 7 | . 2 . 5 . Scanalyzers . | . . . . . Garrison Access . | . . . . . Terminal Hacks 8 | . 1 . 3 4 Prototype ID Bank 3 | . 1 . 1 1 Branch Access Points 1 | . . . . 1 Locate Traps 2 | . . . 2 . Disarm Traps 2 | . . . . 2 Fabricator Hacks . | . . . . . Repair Station Hacks 1 | . 1 . . . Scan Component 1 | . 1 . . . Recycling Unit Hacks 3 | . 2 . 1 . Report Inventory 2 | . 1 . 1 . Retrieve Matter 1 | . 1 . . . Scanalyzer . | . . . . . Garrison Access Hacks . | . . . . . Unauthorized Hacks . | . . . . . Terminals . | . . . . . Fabricators . | . . . . . Repair Stations . | . . . . . Recycling Units . | . . . . . Scanalyzers . | . . . . . Garrison Access . | . . . . . Data Cores Recovered . | . . . . . Used . | . . . . . Hacking Detections 4 | . 1 . 2 1 Full Trace Events 2 | . 1 . 1 . Feedback Events . | . . . . . Feedback Blocked . | . . . . . Robot Schematics Acquired . | . . . . . Robots Built . | . . . . . Authchips . | . . . . . Time . | . . . . . Total Robot Build Rating . | . . . . . Part Schematics Acquired . | . . . . . Parts Built . | . . . . . Authchips . | . . . . . Time . | . . . . . Total Part Build Rating . | . . . . . Parts Repaired . | . . . . . Time . | . . . . . Parts Recycled . | . . . . . Recycled Matter . | . . . . . Retrieved Matter 20 | . 20 . . . Retrieved Components . | . . . . . Parts Scanalyzed . | . . . . . Part Schematics Acquired . | . . . . . Parts Damaged . | . . . . . Bothacking | -11 -10 -10 -8 -8 ------------ Run | Yrd Mat Sub Mat Sto Used RIF Installer . | . . . . . Robots Hacked . | . . . . . Non-combat . | . . . . . Combat . | . . . . . Robot Hacks Applied . | . . . . . Relay Couplers Released . | . . . . . Fabnet Peak Effective % . | . . . . . Robots Rewired . | . . . . . Allies Hacked . | . . . . . Hacks Repelled . | . . . . . Allies | -11 -10 -10 -8 -8 -------- Run | Yrd Mat Sub Mat Sto Total Allies . | . . . . . Largest Group . | . . . . . Highest-Rated Group . | . . . . . Highest-Rated Ally . | . . . . . Total Orders . | . . . . . Ally Attacks . | . . . . . Total Damage . | . . . . . Kills . | . . . . . Allies Corrupted . | . . . . . Allies Melted . | . . . . . Intel | -11 -10 -10 -8 -8 ------- Run | Yrd Mat Sub Mat Sto Robot Analysis Total . | . . . . . Derelict Logs Recovered 2 | . . 2 . . Drone Launches . | . . . . . Drone Recoveries . | . . . . . Exploration | -11 -10 -10 -8 -8 ------------- Run | Yrd Mat Sub Mat Sto Turns Passed 4666 | 109 1542 1529 1186 300 Spaces Moved 2111 | 51 777 735 450 98 Core 22 | 10 . . 11 1 Treads 1815 | 41 761 735 185 93 Legs 270 | . 16 . 254 . Wheels 4 | . . . . 4 Hover . | . . . . . Flight . | . . . . . Fastest Speed 50 | 50 160 160 155 120 Average Speed 174 | 138 161 182 189 162 Slowest Speed 500 | 160 240 240 450 500 Overloaded Moves . | . . . . . Propulsion Burnouts . | . . . . . Robots Hopped . | . . . . . Cave-ins Triggered . | . . . . . Exploration Rate (%) 44 | 4 86 59 47 26 Regions Visited 4 Branch Regions 2 Pre-discovered Areas 2 | . . 2 . . Known Exits Taken . | . . . . . Unknown Exits Taken 4 | 1 1 1 1 . Scrap Searched 4 | . . 4 . . Spaces Dug . | . . . . . Terrain Destroyed 12 | . . . 10 2 Melee . | . . . . . Projectile 6 | . . . 4 2 AOE 6 | . . . 6 . Terrain Rammed . | . . . . . Walls Destroyed . | . . . . . Machines Disabled . | . . . . . Actions | -11 -10 -10 -8 -8 --------- Run | Yrd Mat Sub Mat Sto Total 2648 | 71 945 835 636 161 Wait 154 | . 52 42 52 8 Move 2107 | 50 776 734 449 98 Hop . | . . . . . Pick Up 59 | 6 27 6 19 1 Fast Attach 8 | 2 1 . 5 . Attach 38 | 4 5 5 14 10 Detach . | . . . . . Swap 23 | . 12 3 5 3 Drop 23 | . 12 1 10 . Fire 234 | 9 60 44 80 41 Melee . | . . . . . Ram . | . . . . . Kick 2 | . . . 2 . Crush . | . . . . . Escape Stasis . | . . . . . Rewire . | . . . . . Trap . | . . . . . Miscellaneous . | . . . . . Route ------- -11/Scrapyard -10/Materials (discovered 5 exits: [*Mat x2] / [*Min x2] / [*Sub]) -10/Subcaves (discovered 2 exits: *Mat / *Rec) -8/Materials (discovered 2 exits: [*Fac] / *Sto) -8/Storage (discovered 1 exit: Rec) History --------- Turn | Location | Event 12 | -11/Scrapyard | Discovered new exit (range 15) 110 | -11/Scrapyard | Entered Materials 238 | -10/Materials | Discovered new exit (range 6) 327 | -10/Materials | Build established: Mutant 408 | -10/Materials | Discovered new exit (range 6) 620 | -10/Materials | Discovered new exit (range 15) 724 | -10/Materials | Lost 4 parts (1p2n1w) 1226 | -10/Materials | Discovered new exit (range 8) 1473 | -10/Materials | Discovered new exit (range 5) 1652 | -10/Materials | Entered Subcaves 1702 | -10/Subcaves | Core integrity fell below 50% 1769 | -10/Subcaves | Learned location of Storage (-8) 2135 | -10/Subcaves | A swath of the cavern ceiling suddenly collapsed 2211 | -10/Subcaves | Discovered new exit (range 11) 2229 | -10/Subcaves | Core integrity fell below 20% 2460 | -10/Subcaves | Disturbed a concealed Subdweller 2920 | -10/Subcaves | Shifting Twisted Machinery released Battle Cannon 3037 | -10/Subcaves | Discovered new exit (range 13) 3181 | -10/Subcaves | Entered Materials 3181 | -8/Materials | Evolved 4 slots: Propulsion x2, Utility x2 3441 | -8/Materials | Lost 8 parts (1p3n4w) 4251 | -8/Materials | Discovered new exit (range 16) 4319 | -8/Materials | Discovered new exit (range 6) 4367 | -8/Materials | Entered Storage 4391 | -8/Storage | Identified exit to Recycling 4498 | -8/Storage | Garrison activated, responded to threat 4578 | -8/Storage | Core integrity fell below 50% 4646 | -8/Storage | Core integrity fell below 20% 4647 | -8/Storage | Destroyed 9 combat bots 4667 | -8/Storage | Destroyed by Y-45 Defender with Beam Rifle Last Messages --------------- 04626_ Slug penetrates S-10 Pest. 04626_ S-10 Pest destroyed. 04627_ K-01 Serf destroyed. 04628_ R-06 Scavenger collects Lgt. Armor Plating. 04631_ R-06 Scavenger collects Heat Sink. 04635_ Imp. Heat Sink destroyed. 04635_ R-06 Scavenger collects Wheel. 04637_ M-28 Smith repairs G-47 Trooper. 04641_ Gauss Rifle destroyed. 04641_ M-28 Smith repairs Particle Gun. 04647_ Sub. Monowheel destroyed. 04654_ Particle Cannon destroyed. 04658_ K-01 Serf collects debris. 04661_ Lgt. Treads destroyed. 04661_ Sub. Power Source destroyed. 04662_ G-47 Trooper destroyed. 04662_ K-01 Serf collects debris. 04666_ Overheating: System interference. 04666_ Hvy. Particle Cannon temporarily disabled. 04666_ K-01 Serf collects debris. Map ----- +----------------------------------------------------+ | ?????????????????????????????????????????????????? | | ?????????????????????????????????????????????????? | | ?????????????????????????????????????????????????? | | ????????????????????????????###################### | | ????????????????????????????# | | ????????????????????????????# | | ????????????????????????????# | | ????????????????????????????# ############### | | ????????????????????????????# #?????????????? | | ????????????????????????????# #?????????????? | | ????????????????????????###?# #?????????????? | | ????????>??????????????? ?# #?????????????? | | ???????????????????????? ?# #?????????????? | | ???????????????????????? ?# #?????????????? | | ???????????????????????? ?# # ""??????????? | | ??????????????# ???????? ?# + ???????????? | | ??????????????# ########### #? ???????????? | | ??????????????# %^ ^ ^ # ???????????? | | ??????????????# ^% % + ????????????? | | ?????????????????""" ^"" "" #?????????????? | | ??????????????# """ """ "" ##????????????? | | ??????????????# """ """ *% "#????????????? | | ??????????????# """ ["= ku T#????????????? | | ?????????????## " %"= % "#????????????? | | ????????? = g%Y= ;#????????????? | | ????????? a @ * % #?????????????? | | ????????????#####""T""####### g #?????????????? | | ????????????????#"""""??????# *=%#?????????????? | | ??????????????????##????????# ##+####??????????? | | ????????????????????????????# #=[[= #??????????? | | ????????????????????????????# #*[[ =#??????????? | | ????????????????????????????# # %+=?????????? | | ????????????????????????????+ # # ???????? | | ???????????????????????????## # %#? #??????? | | ????????????????????????????# # =+?? +??????? | | ????????????????????????????# # # ??#??????? | | ????????????????????????????# # # ?????????? | | ????????????????????????????# # #? ????????? | | ????????????????????????????# # #? ???????? | | ????????????????????????????# # #?? ???????? | | ????????????????????????????# # #??##??????? | | ????????????????????????????# #######??????????? | | ????????????????????????????+ ?????????????????? | | ????????????????????????????? ?????????????????? | | ?????????????????????????????????????????????????? | | ?????????????????????????????????????????????????? | | ?????????????????????????????????????????????????? | | ?????????????????????????????????????????????????? | | ?????????????????????????????????????????????????? | | ?????????????????????????????????????????????????? | +----------------------------------------------------+ Best States ------------- Heat Dissipation 45 Energy Generation 15 Energy Capacity 250 Matter Stores 300 Matter Capacity 300 Sight Range 16 Terrain Scan Density 10 Armor Coverage 600 Resistance: KI 20 Resistance: TH 10 Utility Shielding 33 Evasion (%) 50 Targeting Accuracy 8 Recoil Reduction 4 Item Schematics ----------------- None Robot Schematics ------------------ None Fabricated ------------ Nothing Alien Tech Used ----------------- None Achievements -------------- None Challenges ------------ None Game ------ Seed BombGodSink Manual? 0 Play Time 00:33:56 Cumulative 36.9 hours Start 2025.03.19 @ 15:09:31 End 2025.03.19 @ 15:41:58 Sessions 1 Manual Loads 0 Difficulty Rogue Special Mode None Game No. 69 Rogue 69 Adventurer 0 Explorer 0 Win Type - Total 0 Types 0/0/0/0/0/0/0/0/0 Lore% 37 Gallery% 37 Achievement% 33 Wizard Run 0 Options --------- Layout 0 ASCII 0 Keyboard 0 Movement Mouse Keybinds 0 Fullscreen 1 Font 16/SmallcapsGlow Map View 75x55 Zoom Use 0% Tactical HUD 1 Map Filters NONE Filters NONE Steam 1 RUN: 8d593e8b-0fd0-4a35-9e05-732879d5f7b4